[Event "Austrian Bundesliga 2023-24"]
[Site "Austria"]
[Date "2024.03.20"]
[Round "7.13"]
[White "Pechac, Jergus"]
[Black "Janzelj, Tim"]
[Result "1-0"]
[ECO "B07"]
[WhiteElo "2571"]
[BlackElo "2403"]
[Annotator "TA"]
[PlyCount "95"]
[EventDate "2023.10.21"]
[EventType "team-tourn"]
[EventCountry "AUT"]
[SourceTitle "playchess.com"]
[Source "ChessBase"]
[SourceQuality "1"]
[TimeControl "40/5400+30:1800+30"]

{[%evp 14,95,44,25,65,68,70,58,66,62,61,35,73,56,60,47,31,14,22,0,34,20,80,33,38,0,9,0,22,24,20,21,14,30,31,30,21,37,100,34,187,170,187,74,72,76,77,78,85,85,118,130,181,178,201,176,160,165,152,159,218,204,183,170,178,181,172,161,167,121,173,179,204,192,161,192,309,327,419,399,394,400,373,354]} 1. e4 {[%emt 0:00:05]} d6 {[%emt 0:00:34]} 2. d4 {[%emt 0:00:08]} Nf6 {[%emt 0:00:03]} 3. Nc3 {[%emt 0:00:05]} e5 {[%emt 0:00:03]} 4. dxe5 {[%emt 0:00:10]} dxe5 {[%emt 0:00:07]} 5. Qxd8+ {[%emt 0:00:05]} Kxd8 {[%emt 0:00:02]} 6. Bc4 {[%emt 0:00:12]} Be6 {[%emt 0:00:03]} 7. Bxe6 {[%emt 0:00:10]} fxe6 {[%emt 0:00:02]} 8. f3 {[%emt 0:00:11]} Nbd7 {[%emt 0:02:08]} 9. Nh3 {[%emt 0:01:34][%cal Bg1h3,Bh3f2,Bf2d3][%mdl 32]} Bd6 {[%emt 0:03:16]} 10. Be3 {[%emt 0:01:25]} Ke7 {[%emt 0:00:22] White is slightly better.} 11. Nf2 {[%emt 0:00:32]} a6 {[%emt 0:00:46]} 12. Nd3 {[%emt 0:02:13]} h6 {[%emt 0:03:50]} 13. a4 {[%emt 0:01:12]} g5 {[%emt 0:01:58][%cal Bg7g5,Bg5g4][%mdl 32]} 14. Ke2 {[%emt 0:04:27]} g4 {[%emt 0:07:45]} 15. Bf2 {[%emt 0:05:17]} Rag8 {[%emt 0:04:11]} 16. Rag1 {[%emt 0:06:38]} Rg6 {[%emt 0:05:44]} 17. Nd1 {[%emt 0:06:51]} h5 {[%emt 0:11:46]} (17... Nh5 $11) 18. Ne3 {[%emt 0:02:32]} (18. b4 $16) 18... h4 $1 $14 {[%emt 0:05:00]} 19. Nc4 {[%emt 0:01:51]} h3 $1 {[%emt 0:07:13]} 20. gxh3 {[%emt 0:00:58]} (20. Nd2 {simplifies} hxg2 21. Rxg2 gxf3+ 22. Kxf3 Rxg2 23. Kxg2 Nh5 24. h4) 20... gxf3+ {[%emt 0:00:30]} 21. Kxf3 {[%emt 0:00:18]} Rxh3+ {[%emt 0:00:27]} 22. Rg3 {[%emt 0:00:47] The board is on fire.} Rgxg3+ {[%emt 0:04:47]} 23. Bxg3 {[%emt 0:00:16]} b5 {[%emt 0:03:13]} 24. axb5 {[%emt 0:01:12]} axb5 {[%emt 0:00:02]} 25. Na5 {[%emt 0:00:25]} Kf7 {[%emt 0:06:18]} (25... Nh5 $14) 26. Nc6 {[%emt 0:01:48]} (26. Ra1 $16) 26... Kg6 $2 {[%emt 0:03:04]} (26... Nh5 $14) 27. Ra1 $18 {[%emt 0:01:53]} Nh7 {[%emt 0:03:56] [#]} 28. Ra5 {[%emt 0:09:08]} (28. b4 $1 $18 {is more deadly.}) 28... Ng5+ $16 {[%emt 0:01:06]} 29. Kg2 {[%emt 0:01:11] White is more active.} Rh5 {[%emt 0:02:54]} 30. Ncxe5+ {[%emt 0:11:47]} (30. Ndxe5+ Nxe5 31. Nxe5+ Bxe5 32. Bxe5 Nxe4 (32... c6 33. Ra6 $11) 33. Bxc7 (33. Rxb5 $2 c6 $19) 33... Rc5 $17) 30... Bxe5 {[%emt 0:04:06]} 31. Bxe5 {[%emt 0:00:06]} (31. Nxe5+ Nxe5 32. Bxe5 Nxe4 (32... c6 33. Bf4 $11) 33. Bxc7 (33. Rxb5 $2 c6 $19) 33... Rc5 $11) 31... Kf7 {[%emt 0:05:26]} 32. Nf4 {[%emt 0:04:04]} Rh4 {[%emt 0:00:33]} (32... Rh6 $16 {was called for.} 33. Rxb5 (33. Bxc7 e5 $16) 33... c5) 33. Bxc7 $18 {[%emt 0:00:04]} (33. Rxb5 Rg4+ 34. Kf2 (34. Kh1 $2 Nxe5 35. h3 Rxf4 $19) 34... Nxe5 (34... Nxe4+ $2 {too greedy.} 35. Kf3 $18) 35. Rxe5 Kf6 $11 (35... Rxf4+ 36. Kg3 $16)) 33... Rg4+ {[%emt 0:01:43]} 34. Kf1 {[%emt 0:00:50]} e5 {[%emt 0:02:36]} 35. Nd3 {[%emt 0:00:26]} Rxe4 {[%emt 0:00:19]} 36. Rxb5 {[%emt 0:02:25]} Ke6 {[%emt 0:03:41]} (36... Rc4 $16) 37. Rb4 {[%emt 0:07:16]} Re3 {[%emt 0:01:29]} 38. h4 {[%emt 0:02:41]} Ne4 {[%emt 0:01:37]} 39. Bb6 {[%emt 0:06:01]} Nxb6 {[%emt 0:05:06]} 40. Rxb6+ {[%emt 0:00:00][%mdl 4096] Endgame. KRN-KRN} Kf5 {[%emt 0:00:00]} 41. Rb8 {[%emt 0:12:08]} (41. Rh6 $18) 41... Nf6 {[%emt 0:02:23]} (41... Rf3+ $16 42. Kg2 Rg3+ 43. Kf1 Rf3+ 44. Kg2 Rg3+ 45. Kh2 Rg4) 42. Nf2 {[%emt 0:05:51]} Nh5 {[%emt 0:05:56]} 43. Rf8+ {[%emt 0:01:11]} Ke6 {[%emt 0:00:36]} 44. Rh8 {[%emt 0:02:21]} Nf4 {[%emt 0:00:18]} (44... Ng3+ $142 45. Kg2 Nf5) 45. h5 {[%emt 0:00:09][%cal Bh4h5,Bh5h6][%mdl 32] [#] Threatens to win with h6.} Kf5 {[%emt 0:03:32]} 46. h6 {[%emt 0:00:43] Hoping for Rg8. White is winning.} Kg6 {[%emt 0:02:21]} 47. Ng4 {[%emt 0:00:19]} Rf3+ {[%emt 0:03:12]} 48. Ke1 {[%emt 0:00:17] Weighted Error Value: White=0.14 (very precise) /Black=0.23 (precise) .  Mistake:       	White=4     	Black=7      Inaccurate:     	White=2     	Black=3      OK:         	White=12    	Black=12     Best:        	White=5     	Black=2      Strong:       	---       	Black=2} 1-0

[Event "Austrian Bundesliga 2023-24"]
[Site "Austria"]
[Date "2024.03.20"]
[Round "7.14"]
[White "Pajeken, Jakob Leon"]
[Black "Zilka, Stepan"]
[Result "1/2-1/2"]
[ECO "C77"]
[WhiteElo "2424"]
[BlackElo "2589"]
[Annotator "TA"]
[PlyCount "74"]
[EventDate "2023.10.21"]
[EventType "team-tourn"]
[EventCountry "AUT"]
[SourceTitle "playchess.com"]
[Source "ChessBase"]
[SourceQuality "1"]
[TimeControl "40/5400+30:1800+30"]

{[%evp 18,74,0,0,0,0,0,0,19,20,37,0,5,-10,-9,-1,-2,-3,0,0,0,0,0,0,0,0,0,0,0,0,0,0,18,15,16,23,21,2,3,0,0,0,0,0,0,0,0,0,0,0,0,0,0,0,0,0,0,0,0]} 1. e4 {[%emt 0:00:04]} e5 {[%emt 0:00:06]} 2. Nf3 {[%emt 0:00:22]} Nc6 {[%emt 0:00:07]} 3. Bb5 {[%emt 0:00:08]} a6 {[%emt 0:01:19]} 4. Ba4 {[%emt 0:00:06]} Nf6 {[%emt 0:00:05]} 5. Nc3 {[%emt 0:00:07]} b5 {[%emt 0:09:33]} 6. Bb3 {[%emt 0:00:12]} Be7 {[%emt 0:01:43]} 7. d3 {[%emt 0:00:57]} d6 {[%emt 0:04:00]} 8. a3 {[%emt 0:00:22]} O-O {[%emt 0:01:16]} 9. O-O {[%emt 0:00:18]} Bg4 {[%emt 0:03:06]} 10. Be3 {[%emt 0:00:48]} Nd4 {[%emt 0:00:11]} 11. Bxd4 {[%emt 0:00:44]} exd4 {[%emt 0:00:05]} 12. Nd5 {[%emt 0:00:35]} Nxd5 {[%emt 0:03:46]} 13. Bxd5 {[%emt 0:00:21]} Rc8 {[%emt 0:00:05]} 14. h3 {[%emt 0:00:39]} Bd7 {[%emt 0:00:06]} 15. Nxd4 {[%emt 0:06:19]} c6 {[%emt 0:08:20]} 16. Ba2 {[%emt 0:01:44]} Bf6 $1 {[%emt 0:00:05]} 17. c3 {[%emt 0:00:35]} Bxd4 $1 {[%emt 0:00:04]} 18. cxd4 {[%emt 0:00:05]} Qf6 {[%emt 0:00:04]} 19. e5 {[%emt 0:05:31]} dxe5 {[%emt 0:03:17]} 20. dxe5 {[%emt 0:00:06]} Qxe5 {[%emt 0:00:07]} 21. d4 {[%emt 0:01:47]} Qd6 {[%emt 0:04:09]} 22. Rc1 {[%emt 0:03:15]} h6 {[%emt 0:05:16]} 23. Re1 {[%emt 0:16:15]} Rce8 {[%emt 0:01:55]} 24. Qd3 {[%emt 0:08:47]} Be6 {[%emt 0:04:06]} 25. Bxe6 {[%emt 0:02:07]} Rxe6 {[%emt 0:04:52]} 26. Rxe6 {[%emt 0:00:49]} Qxe6 $11 {[%emt 0:01:28][%mdl 4096] Endgame. KQR-KQR} 27. Qc3 {[%emt 0:03:43] The position is equal.} Qf6 {[%emt 0:05:17]} 28. b4 {[%emt 0:02:49]} Re8 {[%emt 0:01:14]} 29. Re1 {[%emt 0:06:54]} (29. Qxc6 $2 {perishes.} Re1+ 30. Rxe1 Qxc6 $19) 29... Rxe1+ {[%emt 0:03:50]} 30. Qxe1 {[%emt 0:00:06]} Qxd4 {[%emt 0:00:40] KQ-KQ} 31. Qe8+ {[%emt 0:00:08]} Kh7 {[%emt 0:00:03] And now ...Qa1+ would win.} 32. Qxf7 {[%emt 0:00:25]} Qa1+ {[%emt 0:00:19]} 33. Kh2 {[%emt 0:00:04]} Qxa3 {[%emt 0:00:10]} 34. Qf5+ {[%emt 0:00:06]} Kg8 {[%emt 0:00:47]} 35. Qc8+ {[%emt 0:00:21]} Kh7 {[%emt 0:00:12]} 36. Qf5+ {[%emt 0:00:06]} Kg8 {[%emt 0:00:04]} 37. Qc8+ {[%emt 0:00:06]} Kh7 {[%emt 0:00:03] An even fight not without its subleties.   Weighted Error Value: White=0.04 (flawless) /Black=0.02 (flawless) .  Inaccurate:     	White=1     	---        OK:         	White=12    	Black=14     Best:        	White=1     	Black=1      Strong:       	---       	Black=2} 1/2-1/2

[Event "Austrian Bundesliga 2023-24"]
[Site "Austria"]
[Date "2024.03.20"]
[Round "7.15"]
[White "Hracek, Zbynek"]
[Black "Sebenik, Matej"]
[Result "1/2-1/2"]
[ECO "B30"]
[WhiteElo "2542"]
[BlackElo "2522"]
[Annotator "TA"]
[PlyCount "98"]
[EventDate "2023.10.21"]
[EventType "team-tourn"]
[EventCountry "AUT"]
[SourceTitle "playchess.com"]
[Source "ChessBase"]
[SourceQuality "1"]
[TimeControl "40/5400+30:1800+30"]

{[%evp 15,98,20,29,27,14,29,50,43,72,68,78,78,71,58,78,78,82,81,82,78,73,79,84,84,85,83,89,74,93,93,93,93,93,93,93,93,95,93,92,91,89,89,99,99,99,99,110,99,112,112,115,111,111,114,118,118,111,50,90,90,114,107,122,99,99,99,99,99,99,99,99,99,99,99,99,99,99,99,99,72,72,0,99,0,99]} 1. e4 {[%emt 0:00:03]} c5 {[%emt 0:00:09]} 2. Nf3 {[%emt 0:00:08]} Nc6 {[%emt 0:00:08]} 3. Bb5 {[%emt 0:00:12]} Nf6 {[%emt 0:00:10]} 4. Bxc6 {[%emt 0:02:52]} dxc6 {[%emt 0:00:09]} 5. d3 {[%emt 0:01:05]} Bg4 {[%emt 0:00:48]} 6. Nbd2 {[%emt 0:00:40] B30: Sicilian: 2...Nc6 3 Bb5, lines without ...g6.} Nd7 {[%emt 0:00:41]} 7. Nc4 {[%emt 0:04:05]} e6 {[%emt 0:09:04]} 8. h3 {[%emt 0:07:05]} Bh5 {[%emt 0:00:04]} 9. g4 {[%emt 0:07:35]} Bg6 {[%emt 0:00:20]} 10. h4 $146 {[%emt 0:00:20]} ({Predecessor:} 10. Qe2 Qc7 11. a4 b5 12. Ne3 Be7 13. Ng2 c4 14. O-O O-O 15. dxc4 bxa4 16. Nfh4 {½-½ Samsonkin,A (2373)-Mikaelyan,A (2519) North American op 33rd 2023 (3)}) 10... b5 {[%emt 0:09:03]} 11. h5 {[%emt 0:10:11]} Bxe4 {[%emt 0:17:58]} 12. dxe4 {[%emt 0:00:41]} bxc4 {[%emt 0:00:03] [#]} 13. Bd2 $1 {[%emt 0:04:17]} Be7 {[%emt 0:15:00]} 14. Qe2 {[%emt 0:02:02]} Qb8 {[%emt 0:15:08]} 15. Bc3 {[%emt 0:05:43]} (15. Qxc4 $6 Qxb2 16. O-O Qb5 $11) 15... Bf6 {[%emt 0:00:40]} 16. e5 {[%emt 0:04:55]} ({Of course not} 16. Qxc4 Qf4 17. Nd2 (17. Bxf6 $2 Qxf3 18. Rh4 Qxf6 $19) 17... O-O $11) 16... Be7 {[%emt 0:00:04]} 17. Nd2 {[%emt 0:05:42]} Nb6 {[%emt 0:01:27]} 18. Nxc4 {[%emt 0:00:27]} Nxc4 {[%emt 0:00:57]} 19. Qxc4 {[%emt 0:00:06]} Qb5 {[%emt 0:00:03]} 20. b3 {[%emt 0:07:30]} Rd8 {[%emt 0:06:13]} 21. f4 {[%emt 0:04:18]} Rd5 {[%emt 0:05:28]} 22. h6 {[%emt 0:09:44]} g6 {[%emt 0:00:06]} 23. Rh3 {[%emt 0:04:05]} O-O {[%emt 0:06:21]} 24. g5 {[%emt 0:02:23]} Rfd8 {[%emt 0:00:25]} 25. Re3 {[%emt 0:01:34]} (25. Ke2 {is more complex.} Kf8 26. Re3 R8d7 27. a4) 25... Qb6 {[%emt 0:01:43]} 26. Re4 {[%emt 0:00:26]} R8d7 {[%emt 0:00:59]} 27. Kf2 {[%emt 0:02:55]} (27. Ke2 {keeps more tension.} Bd8 28. Rf1 Qb7 29. Re3) 27... Qd8 {[%emt 0:00:20]} 28. Rae1 {[%emt 0:02:03]} Rd1 {[%emt 0:03:35]} 29. Rxd1 {[%emt 0:07:52]} Rxd1 {[%emt 0:00:04]} 30. Re1 {[%emt 0:00:55]} Rd5 {[%emt 0:03:14]} 31. Ke2 {[%emt 0:00:19]} Qd7 {[%emt 0:01:34]} 32. Rf1 {[%emt 0:01:27]} Bd8 {[%emt 0:01:00]} 33. Rf3 {[%emt 0:01:17]} Kf8 {[%emt 0:03:05]} 34. Rd3 {[%emt 0:00:17]} Rxd3 {[%emt 0:00:33]} 35. Qxd3 {[%emt 0:01:36]} Qd5 {[%emt 0:00:06]} 36. Bd2 {[%emt 0:00:51]} (36. Be1 $16) 36... Ke8 {[%emt 0:00:51]} 37. Be3 {[%emt 0:00:35]} Be7 {[%emt 0:00:50]} 38. Bf2 {[%emt 0:00:37]} Kd7 {[%emt 0:00:33]} 39. c4 {[%emt 0:00:31]} Qxd3+ {[%emt 0:00:03]} 40. Kxd3 {[%emt 0:00:00]} Kc7 {[%emt 0:00:00]} 41. Kc3 {[%emt 0:00:03]} Kb7 {[%emt 0:00:46]} 42. Kb2 {[%emt 0:00:16]} Bf8 {[%emt 0:01:28]} 43. Ka3 {[%emt 0:00:03]} Be7 {[%emt 0:01:13]} 44. Ka4 {[%emt 0:00:03]} Ka6 {[%emt 0:08:05]} 45. Be3 {[%emt 0:00:08]} Kb7 {[%emt 0:00:57]} 46. Bd2 {[%emt 0:00:05]} Bd8 {[%emt 0:00:50]} 47. Be1 {[%emt 0:01:50]} Ka6 {[%emt 0:03:07]} 48. Bf2 {[%emt 0:00:24]} Be7 {[%emt 0:00:03]} 49. Be3 {[%emt 0:00:53]} Kb7 {[%emt 0:01:50]} 1/2-1/2

[Event "Austrian Bundesliga 2023-24"]
[Site "Austria"]
[Date "2024.03.20"]
[Round "7.16"]
[White "Schreiner, Peter"]
[Black "Haba, Petr"]
[Result "1/2-1/2"]
[ECO "A06"]
[WhiteElo "2400"]
[BlackElo "2436"]
[Annotator "TA"]
[PlyCount "75"]
[EventDate "2023.10.21"]
[EventType "team-tourn"]
[EventCountry "AUT"]
[SourceTitle "playchess.com"]
[Source "ChessBase"]
[SourceQuality "1"]
[TimeControl "40/5400+30:1800+30"]

{[%evp 10,75,35,29,45,-5,0,1,19,0,46,29,70,48,61,55,52,21,96,68,101,98,107,103,110,85,112,108,118,114,114,116,114,116,114,112,118,95,174,163,143,156,143,156,161,130,176,166,165,168,187,157,147,139,192,72,72,71,71,62,69,70,117,0,0,0,89,0]} 1. Nf3 {[%emt 0:00:12]} d5 {[%emt 0:00:21]} 2. g3 {[%emt 0:00:19]} Nf6 {[%emt 0:00:25]} 3. Bg2 {[%emt 0:00:22]} c6 {[%emt 0:00:38]} 4. O-O {[%emt 0:03:51]} Bf5 {[%emt 0:04:28]} 5. d3 {[%emt 0:03:18]} h6 {[%emt 0:00:26]} 6. c4 {[%emt 0:03:46]} dxc4 {[%emt 0:01:48]} 7. dxc4 {[%emt 0:02:19]} ({White should play} 7. Ne5 $14) 7... Qxd1 {[%emt 0:01:00]} 8. Rxd1 {[%emt 0:00:06]} Nbd7 {[%emt 0:00:09] The position is equal.} 9. b3 {[%emt 0:06:00]} e5 {[%emt 0:11:43]} (9... Bh7 $11) 10. Bb2 $14 {[%emt 0:03:20]} e4 {[%emt 0:00:07]} 11. Nd4 {[%emt 0:04:24]} Bg6 {[%emt 0:04:15]} 12. Bh3 {[%emt 0:09:31]} O-O-O {[%emt 0:14:07]} 13. Na3 {[%emt 0:14:13][%cal Bb1a3,Ba3c2,Bc2e3][%mdl 32]} Bc5 {[%emt 0:05:38]} (13... h5 $11) 14. Nac2 $16 {[%emt 0:03:44]} Rhe8 {[%emt 0:05:12]} 15. b4 {[%emt 0:09:15]} Bf8 {[%emt 0:01:39]} 16. a3 {[%emt 0:06:26]} Kc7 {[%emt 0:01:18]} 17. Ne3 {[%emt 0:05:50]} Ne5 {[%emt 0:04:52] [#]} 18. Ne6+ $1 {[%emt 0:01:22][%mdl 512]} fxe6 {[%emt 0:01:15]} 19. Bxe5+ {[%emt 0:00:10]} Kc8 {[%emt 0:00:21]} 20. Rxd8+ {[%emt 0:04:13]} Kxd8 {[%emt 0:00:04]} 21. Rd1+ {[%emt 0:01:31]} Kc8 {[%emt 0:13:03]} 22. c5 {[%emt 0:01:51]} Nd7 {[%emt 0:07:58]} 23. Bd6 {[%emt 0:04:00] White is much more active.} b5 {[%emt 0:00:05] Prevents Nc4.} (23... Bxd6 $16 24. Rxd6 Bf7) 24. cxb6 {[%emt 0:08:04]} axb6 {[%emt 0:00:10]} 25. Nc4 {[%emt 0:00:46] And now Bxf8 would win.} Bf5 {[%emt 0:01:59] Black is weak on the dark squares} 26. g4 {[%emt 0:00:53]} Bh7 {[%emt 0:04:10]} 27. a4 {[%emt 0:00:10][%cal Ba3a4,Ba4b5][%mdl 32]} g5 {[%emt 0:07:06]} (27... Rd8 $16 {was called for.}) 28. b5 {[%emt 0:02:02]} cxb5 {[%emt 0:02:18]} 29. axb5 {[%emt 0:00:06]} Be7 {[%emt 0:00:06]} 30. Rc1 {[%emt 0:01:45]} Kd8 {[%emt 0:01:33]} 31. Bg2 {[%emt 0:00:50]} Rf8 {[%emt 0:01:30] [#]} (31... Bxd6 $16 {was necessary.} 32. Nxd6 Rf8 33. Bxe4 (33. Nxe4 Rf4 $14) 33... Bxe4) 32. h3 {[%emt 0:01:14]} (32. Bg3 $1 $18) 32... Bxd6 {[%emt 0:03:00]} 33. Nxd6 {[%emt 0:00:01]} Nc5 {[%emt 0:00:06]} 34. Ra1 {[%emt 0:01:02]} Kc7 {[%emt 0:00:18]} 35. Nc4 {[%emt 0:00:24]} Kb7 {[%emt 0:00:06] Dodges Ra7+} (35... Rd8 $14) 36. Nd6+ {[%emt 0:00:20]} Kc7 {[%emt 0:00:01]} 37. Nc4 {[%emt 0:00:06]} Kb7 {[%emt 0:00:06] Wards off Ra7+} 38. Nd6+ {[%emt 0:00:40] Weighted Error Value: White=0.17 (very precise) /Black=0.17 (very precise) .  Mistake:       	White=3     	Black=6      Inaccurate:     	White=1     	Black=3      OK:         	White=14    	Black=9      Best:        	White=1     	Black=6} (38. f3 $16) 1/2-1/2

[Event "Austrian Bundesliga 2023-24"]
[Site "Austria"]
[Date "2024.03.20"]
[Round "7.17"]
[White "Bures, Jaroslav"]
[Black "Diermair, Andreas"]
[Result "1-0"]
[ECO "C03"]
[WhiteElo "2407"]
[BlackElo "2434"]
[Annotator "RC"]
[PlyCount "65"]
[EventDate "2023.10.21"]
[EventType "team-tourn"]
[EventCountry "AUT"]
[SourceTitle "playchess.com"]
[Source "ChessBase"]
[SourceQuality "1"]
[TimeControl "40/5400+30:1800+30"]

1. e4 {[%emt 0:00:07]} e6 {[%emt 0:00:13]} 2. d4 {[%emt 0:00:07]} d5 {[%emt 0:00:03]} 3. Nd2 {[%emt 0:00:07]} Be7 {[%emt 0:03:20]} 4. Ngf3 {[%emt 0:02:53]} Nf6 {[%emt 0:01:02]} 5. e5 {[%emt 0:01:27]} Nfd7 {[%emt 0:00:10]} 6. Bd3 {[%emt 0:00:07]} c5 {[%emt 0:00:22]} 7. c3 {[%emt 0:00:03]} b6 {[%emt 0:02:06]} 8. Qe2 {[%emt 0:11:00]} a5 {[%emt 0:01:13]} 9. O-O {[%emt 0:14:40]} Ba6 {[%emt 0:02:29]} 10. Bxa6 {[%emt 0:03:24]} Nxa6 {[%emt 0:01:44]} 11. c4 {[%emt 0:04:28]} Nc7 {[%emt 0:01:40]} 12. Rd1 {[%emt 0:03:50]} O-O {[%emt 0:03:05]} 13. Nb1 {[%emt 0:05:56]} Qc8 {[%emt 0:06:55]} 14. cxd5 {[%emt 0:07:23]} Nxd5 {[%emt 0:09:12]} 15. Nc3 {[%emt 0:00:02]} Qc6 {[%emt 0:07:25]} 16. Bg5 {[%emt 0:05:37]} Bxg5 {[%emt 0:06:42]} 17. Nxg5 {[%emt 0:00:15]} h6 {[%emt 0:01:24]} 18. Nge4 {[%emt 0:03:10]} cxd4 {[%emt 0:04:12]} 19. Rxd4 {[%emt 0:00:21]} Nxe5 {[%emt 0:05:05]} 20. Nxd5 {[%emt 0:00:34]} exd5 {[%emt 0:00:05]} 21. Nc3 {[%emt 0:00:15]} Rfe8 {[%emt 0:06:49]} 22. Nxd5 {[%emt 0:03:19]} Qc5 {[%emt 0:02:06]} 23. Qd2 {[%emt 0:01:26]} Rac8 {[%emt 0:06:04]} 24. b3 {[%emt 0:08:36]} Re6 {[%emt 0:08:04]} 25. h3 {[%emt 0:02:22]} Rg6 {[%emt 0:04:11]} 26. Kh1 {[%emt 0:00:32]} Re6 {[%emt 0:01:13]} 27. f4 {[%emt 0:04:44]} Nc6 {[%emt 0:02:23]} 28. Rc4 {[%emt 0:01:26]} Qd6 {[%emt 0:00:44]} 29. Rd1 {[%emt 0:03:10]} Rd8 {[%emt 0:02:14]} 30. Qc3 {[%emt 0:05:25]} Kf8 {[%emt 0:10:02]} 31. f5 {[%emt 0:00:01]} Rf6 {[%emt 0:01:27]} 32. Ne3 {[%emt 0:02:08]} Qg3 {[%emt 0:00:49]} 33. Rxc6 {[%emt 0:01:32]} 1-0

[Event "Austrian Bundesliga 2023-24"]
[Site "Austria"]
[Date "2024.03.20"]
[Round "7.18"]
[White "Dotzer, Lukas"]
[Black "Mikes, Jan"]
[Result "1-0"]
[ECO "B40"]
[WhiteElo "2338"]
[BlackElo "2358"]
[Annotator "RC"]
[PlyCount "147"]
[EventDate "2023.10.21"]
[EventType "team-tourn"]
[EventCountry "AUT"]
[SourceTitle "playchess.com"]
[Source "ChessBase"]
[SourceQuality "1"]
[TimeControl "40/5400+30:1800+30"]

1. e4 {[%emt 0:00:02]} c5 {[%emt 0:00:16]} 2. Nf3 {[%emt 0:00:05]} e6 {[%emt 0:00:24]} 3. d4 {[%emt 0:00:06]} cxd4 {[%emt 0:00:05]} 4. Nxd4 {[%emt 0:00:07]} Nf6 {[%emt 0:00:05]} 5. Nc3 {[%emt 0:00:08]} Bb4 {[%emt 0:01:48]} 6. e5 {[%emt 0:07:48]} Nd5 {[%emt 0:00:08]} 7. Qg4 {[%emt 0:07:06]} Kf8 {[%emt 0:00:12]} 8. Bd2 {[%emt 0:05:05]} h5 {[%emt 0:00:10]} 9. Qe4 {[%emt 0:06:30]} Bxc3 {[%emt 0:06:55]} 10. bxc3 {[%emt 0:02:35]} Nc6 {[%emt 0:00:18]} 11. Nxc6 {[%emt 0:13:30]} bxc6 {[%emt 0:00:23]} 12. c4 {[%emt 0:07:10]} f5 {[%emt 0:04:48]} 13. Qd4 {[%emt 0:04:56]} Ne7 {[%emt 0:00:36]} 14. Be2 {[%emt 0:05:38]} c5 {[%emt 0:18:49]} 15. Qxc5 {[%emt 0:05:11]} Bb7 {[%emt 0:00:32]} 16. O-O {[%emt 0:03:38]} h4 {[%emt 0:02:03]} 17. h3 {[%emt 0:06:07]} Kf7 {[%emt 0:06:06]} 18. Bg5 {[%emt 0:03:00]} Be4 {[%emt 0:00:55]} 19. Rfd1 {[%emt 0:05:52]} Rc8 {[%emt 0:10:40]} 20. Qxa7 {[%emt 0:05:27]} Rc7 {[%emt 0:00:10]} 21. Qb6 {[%emt 0:02:40]} Qc8 {[%emt 0:00:54]} 22. Bxe7 {[%emt 0:03:20]} Kxe7 {[%emt 0:00:15]} 23. Rd2 {[%emt 0:02:33]} g5 {[%emt 0:10:02]} 24. Rad1 {[%emt 0:01:02]} Bc6 {[%emt 0:02:36]} 25. Qe3 {[%emt 0:00:54]} Rg8 {[%emt 0:03:17]} 26. Bf3 {[%emt 0:01:03]} Bxf3 {[%emt 0:02:40]} 27. Qxf3 {[%emt 0:00:22]} g4 {[%emt 0:00:22]} 28. Qe3 {[%emt 0:01:21]} gxh3 {[%emt 0:02:51]} 29. Qxh3 {[%emt 0:01:07]} Rg4 {[%emt 0:00:04]} 30. Qe3 {[%emt 0:00:35]} Qa8 {[%emt 0:10:41]} 31. f3 {[%emt 0:00:23]} Rg6 {[%emt 0:02:22]} 32. Qb6 {[%emt 0:00:35]} Rb7 {[%emt 0:03:50]} 33. Qd4 {[%emt 0:00:27]} Rh6 {[%emt 0:02:20]} 34. c5 {[%emt 0:00:29]} Qa7 {[%emt 0:01:13]} 35. c6 {[%emt 0:00:30]} dxc6 {[%emt 0:00:29]} 36. Kh2 {[%emt 0:00:31]} Qxd4 {[%emt 0:00:51]} 37. Rxd4 {[%emt 0:00:06]} Rh8 {[%emt 0:01:28]} 38. Rc4 {[%emt 0:00:37]} Rb5 {[%emt 0:02:52]} 39. f4 {[%emt 0:00:31]} c5 {[%emt 0:02:20]} 40. a4 {[%emt 0:00:00]} Ra5 {[%emt 0:00:00]} 41. Kh3 {[%emt 0:13:31]} Rg8 {[%emt 0:01:34]} 42. Rd3 {[%emt 0:02:57]} Rg4 {[%emt 0:03:11]} 43. Rb3 {[%emt 0:04:08]} Kd7 {[%emt 0:08:56]} 44. Rb5 {[%emt 0:07:33]} Rxb5 {[%emt 0:00:22]} 45. axb5 {[%emt 0:00:06]} Kc7 {[%emt 0:00:18]} 46. Rxc5+ {[%emt 0:02:43]} Kb6 {[%emt 0:00:03]} 47. Rc6+ {[%emt 0:00:06]} Kxb5 {[%emt 0:00:04]} 48. Rxe6 {[%emt 0:00:09]} Rxf4 {[%emt 0:00:03]} 49. Rd6 {[%emt 0:02:56]} Kc5 {[%emt 0:02:15]} 50. Rd2 {[%emt 0:00:23]} Re4 {[%emt 0:00:32]} 51. Rf2 {[%emt 0:00:52]} Rxe5 {[%emt 0:01:47]} 52. Kxh4 {[%emt 0:00:06]} Kd4 {[%emt 0:02:37]} 53. Kg5 {[%emt 0:00:41]} Re8 {[%emt 0:00:05]} 54. Kf4 {[%emt 0:00:44]} Rf8 {[%emt 0:02:48]} 55. Re2 {[%emt 0:00:29]} Rf7 {[%emt 0:01:16]} 56. Re3 {[%emt 0:01:06]} Rf8 {[%emt 0:01:06]} 57. g3 {[%emt 0:00:32]} Rf7 {[%emt 0:00:30]} 58. Re5 {[%emt 0:00:41]} Rc7 {[%emt 0:00:10]} 59. Rxf5 {[%emt 0:00:28]} Rxc2 {[%emt 0:00:04]} 60. g4 {[%emt 0:00:17]} Rf2+ {[%emt 0:06:45]} 61. Kg5 {[%emt 0:00:10]} Rg2 {[%emt 0:00:03]} 62. Kh5 {[%emt 0:00:54]} Ke4 {[%emt 0:00:07]} 63. Rf8 {[%emt 0:00:31]} Ke5 {[%emt 0:03:02]} 64. g5 {[%emt 0:00:06]} Ke6 {[%emt 0:03:03]} 65. Kh6 {[%emt 0:00:15]} Ke7 {[%emt 0:00:16]} 66. Rf1 {[%emt 0:00:08]} Rh2+ {[%emt 0:00:23]} 67. Kg7 {[%emt 0:00:07]} Rg2 {[%emt 0:00:13]} 68. Re1+ {[%emt 0:00:14]} Kd6 {[%emt 0:00:04]} 69. g6 {[%emt 0:00:06]} Rg3 {[%emt 0:00:07]} 70. Kf7 {[%emt 0:00:16]} Rf3+ {[%emt 0:00:04]} 71. Kg8 {[%emt 0:00:09]} Rg3 {[%emt 0:00:04]} 72. g7 {[%emt 0:00:07]} Rf3 {[%emt 0:00:05]} 73. Rg1 {[%emt 0:00:59]} Ke7 {[%emt 0:00:12]} 74. Kh7 {[%emt 0:00:15]} 1-0